fUST/lending_fUST_20240721
["ID","MTS","AMOUNT","RATE_DAILY","PERIOD"]
[332778979,1721517052414,-500.0,0.00013972,2]
[332778980,1721517052424,-500.0,0.00013972,2]
[332778981,1721517052435,-500.0,0.00013972,2]
[332778982,1721517052446,-500.0,0.00013972,2]
[332778983,1721517052456,-551.34285931,0.00013972,2]
[332778984,1721517052466,-925.61,0.00013972,2]
[332778985,1721517052476,-803.42,0.00013972,2]
[332778986,1721517052487,-1975.93,0.00013972,2]
[332778987,1721517052496,-849.12,0.00013972,2]
[332778988,1721517052506,-500.0,0.00013972,2]
[332778989,1721517052516,-500.0,0.00013972,2]
[332778990,1721517052526,-500.0,0.00013972,2]
[332778991,1721517052535,-504.88,0.00013972,2]
[332778992,1721517052544,-577.81,0.00013972,2]
[332778993,1721517052553,-553.59452076,0.00013972,2]
[332778994,1721517052563,-500.0,0.00013972,2]
[332778995,1721517052572,-1173.32,0.00013972,2]
[332778996,1721517052582,-999.23,0.00013972,2]
[332778997,1721517052591,-753.04,0.00013972,2]
[332778998,1721517052601,-1371.07,0.00013972,2]
[332778999,1721517052611,-500.0,0.00013972,2]
[332779000,1721517052620,-500.0,0.00013972,2]
[332779001,1721517052630,-500.0,0.00013972,2]
[332779002,1721517052640,-4058.99,0.00013972,2]
[332779003,1721517052649,-1304.29,0.00013972,2]
[332779004,1721517052659,-500.0,0.00013972,2]
[332779005,1721517052669,-2255.54,0.00013972,2]
[332779006,1721517052678,-2574.25,0.00013972,2]
[332779007,1721517052689,-1042.84,0.00013972,2]
[332779008,1721517052699,-660.14,0.00013972,2]
[332779009,1721517052709,-655.0,0.00013972,2]
[332779010,1721517052718,-653.69,0.00013972,2]
[332779011,1721517052728,-500.0,0.00013972,2]
[332779012,1721517052738,-500.0,0.00013972,2]
[332779013,1721517052748,-500.0,0.00013972,2]
[332779014,1721517052757,-500.0,0.00013972,2]
[332779015,1721517052767,-1939.64,0.00013972,2]
[332779016,1721517052778,-4215.35,0.00013972,2]
[332779017,1721517052788,-4348.82704163,0.00013972,2]
[332779018,1721517053695,-1307.49295837,0.00013972,2]
[332779019,1721517053706,-500.0,0.00013972,2]
[332779020,1721517053716,-963.83,0.00013972,2]
[332779021,1721517053726,-2167.56,0.00013972,2]
[332779022,1721517053736,-1037.15,0.00013972,2]
[332779023,1721517053745,-500.0,0.00013972,2]
[332779024,1721517053755,-1901.207662,0.00013972,2]
[332779025,1721517053765,-1255.31,0.00013972,2]
[332779026,1721517053775,-1901.207662,0.00013972,2]
[332779027,1721517053786,-3202.39,0.00013972,2]
[332779028,1721517053796,-1116.47,0.00013972,2]
[332779029,1721517053806,-1901.207662,0.00013972,2]
[332779030,1721517053815,-1901.207662,0.00013972,2]
[332779031,1721517053825,-500.0,0.00013972,2]
[332779032,1721517053834,-500.0,0.00013972,2]
[332779033,1721517053844,-500.0,0.00013972,2]
[332779034,1721517053854,-808.54622961,0.00013972,2]
[332779035,1721517054248,-6968.95627888,0.00010024,2]
[332779036,1721517054265,-1840.44472962,0.00010024,2]
[332779037,1721517054275,-500.0,0.00013698,2]
[332779038,1721517054285,-1452.37377039,0.00013972,2]
[332779039,1721517054294,-500.0,0.00013972,2]
[332779040,1721517054304,-1901.207662,0.00013972,2]
[332779041,1721517054314,-1901.207662,0.00013972,2]
[332779042,1721517054324,-1901.207662,0.00013972,2]
[332779043,1721517054334,-1901.207662,0.00013972,2]
[332779044,1721517054344,-500.0,0.00013972,2]
[332779045,1721517054354,-500.0,0.00013972,2]
[332779046,1721517054364,-500.0,0.00013972,2]
[332779047,1721517054374,-500.0,0.00013972,2]
[332779048,1721517054384,-570.53,0.00013972,2]
[332779049,1721517054395,-500.0,0.00013972,2]
[332779050,1721517054406,-500.0,0.00013972,2]
[332779051,1721517054416,-705.92,0.00013972,2]
[332779052,1721517054426,-525.96507878,0.00013972,2]
[332779053,1721517054436,-500.0,0.00013972,2]
[332779054,1721517054448,-740.17,0.00013972,2]
[332779055,1721517054458,-608.44,0.00013972,2]
[332779056,1721517054468,-500.0,0.00013972,2]
[332779057,1721517054479,-500.0,0.00013972,2]
[332779058,1721517054490,-500.0,0.00013972,2]
[332779059,1721517054500,-1036.03,0.00013972,2]
[332779060,1721517054510,-500.0,0.00013972,2]
[332779061,1721517054521,-654.97,0.00013972,2]
[332779062,1721517054533,-500.0,0.00013972,2]
[332779063,1721517054543,-506.36629897,0.00013972,2]
[332779064,1721517054554,-738.23,0.00013972,2]
[332779065,1721517054564,-500.0,0.00013972,2]
[332779066,1721517054574,-845.78,0.00013972,2]
[332779067,1721517054585,-617.48,0.00013972,2]
[332779068,1721517054595,-500.0,0.00013972,2]
[332779069,1721517054606,-2195.11,0.00013972,2]
[332779070,1721517054616,-500.0,0.00013972,2]
[332779071,1721517054627,-254.88943529,0.00013972,2]
[332779072,1721517054638,-500.0,0.00013972,2]
[332779073,1721517054648,-500.0,0.00013972,2]
[332779074,1721517054658,-601.52472544,0.00013972,2]
[332779075,1721517054668,-1523.58,0.00013972,2]
[332779076,1721517054678,-8731.33,0.00013972,2]
[332779077,1721517054688,-1659.8,0.00013972,2]
[332779078,1721517054698,-500.0,0.00013972,2]
[332779079,1721517054708,-500.0,0.00013972,2]
[332779080,1721517054718,-500.0,0.00013972,2]
[332779081,1721517054728,-500.0,0.00013972,2]
[332779082,1721517054738,-500.0,0.00013972,2]
[332779083,1721517054748,-500.0,0.00013972,2]
[332779084,1721517054758,-1580.89478809,0.00013972,2]
[332779085,1721517054771,-705.39713821,0.00013972,2]
[332779086,1721517054787,-405.5380737,0.00013972,2]
[332779087,1721517054798,-1067.01,0.00013972,2]
[332779088,1721517054808,-67.91475549,0.00013972,2]
[332779089,1721517054831,-586.46524451,0.00013972,2]
[332779090,1721517054841,-500.0,0.00013972,2]
[332779091,1721517054852,-858.74,0.00013972,2]
[332779092,1721517054863,-500.0,0.00013972,2]
[332779093,1721517054872,-1402.8344,0.00013972,2]
[332779094,1721517054884,-1402.8344,0.00013972,2]
[332779095,1721517054895,-500.0,0.00013972,2]
[332779096,1721517054906,-1402.8344,0.00013972,2]
[332779097,1721517054916,-1402.8344,0.00013972,2]
[332779098,1721517054926,-910.55,0.00013972,2]
[332779099,1721517054936,-500.0,0.00013972,2]
[332779100,1721517054947,-1402.8344,0.00013972,2]
[332779101,1721517054960,-2959.08,0.00013972,2]
[332779102,1721517054971,-1402.8344,0.00013972,2]
[332779103,1721517054983,-1402.8344,0.00013972,2]
[332779104,1721517054994,-500.0,0.00013972,2]
[332779105,1721517055005,-1402.8344,0.00013972,2]
[332779106,1721517055016,-500.0,0.00013972,2]
[332779107,1721517055028,-500.0,0.00013972,2]
[332779108,1721517055039,-500.0,0.00013972,2]
[332779109,1721517055052,-652.92,0.00013972,2]
[332779110,1721517055063,-500.0,0.00013972,2]
[332779111,1721517055073,-16858.36,0.00013972,2]
[332779112,1721517055085,-500.0,0.00013972,2]
[332779113,1721517055096,-501.52214706,0.00013972,2]
[332779114,1721517055106,-2307.77,0.00013972,2]
[332779115,1721517055117,-500.0,0.00013972,2]
[332779116,1721517055127,-500.0,0.00013972,2]
[332779117,1721517055137,-3665.51,0.00013972,2]
[332779118,1721517055149,-907.91,0.00013972,2]
[332779119,1721517055159,-555.28,0.00013972,2]
[332779120,1721517055171,-500.0,0.00013972,2]
[332779121,1721517055181,-1794.25,0.00013972,2]
[332779122,1721517055191,-836.33,0.00013972,2]
[332779123,1721517055201,-515.7897912,0.00013972,2]
[332779124,1721517055212,-223.886275,0.00013972,2]
[332779125,1721517055223,-223.886275,0.00013972,2]
[332779126,1721517055234,-223.886275,0.00013972,2]
[332779127,1721517055244,-223.886275,0.00013972,2]
[332779128,1721517055254,-1029.32,0.00013972,2]
[332779129,1721517055264,-500.0,0.00013972,2]
[332779130,1721517055277,-7401.26,0.00013972,2]
[332779131,1721517055286,-2795.92,0.00013972,2]
[332779132,1721517055295,-223.886275,0.00013972,2]
[332779133,1721517055305,-223.886275,0.00013972,2]
[332779134,1721517055315,-223.886275,0.00013972,2]
[332779135,1721517055325,-223.886275,0.00013972,2]
[332779136,1721517055335,-500.0,0.00013972,2]
[332779137,1721517055346,-500.0,0.00013972,2]
[332779138,1721517055357,-500.0,0.00013972,2]
[332779139,1721517055367,-2044.79,0.00013972,2]
[332779140,1721517055376,-523.63,0.00013972,2]
[332779141,1721517055386,-500.0,0.00013972,2]
[332779142,1721517055397,-500.0,0.00013972,2]
[332779143,1721517055407,-1213.09,0.00013972,2]
[332779144,1721517055417,-500.0,0.00013972,2]
[332779145,1721517055427,-2605.92,0.00013972,2]
[332779146,1721517055437,-594.76,0.00013972,2]
[332779147,1721517055448,-4790.27,0.00013972,2]
[332779148,1721517055459,-553.54,0.00013972,2]
[332779149,1721517055468,-500.0,0.00013972,2]
[332779150,1721517055478,-797.72,0.00013972,2]
[332779151,1721517055489,-500.0,0.00013972,2]
[332779152,1721517055499,-10729.85,0.00013972,2]
[332779153,1721517055510,-1017.95,0.00013972,2]
[332779154,1721517055521,-500.0,0.00013972,2]
[332779155,1721517055533,-4419.49,0.00013972,2]
[332779156,1721517055544,-619.2,0.00013972,2]
[332779157,1721517055555,-500.0,0.00013972,2]
[332779158,1721517055566,-500.0,0.00013972,2]
[332779159,1721517055576,-564.97,0.00013972,2]
[332779160,1721517055587,-500.0,0.00013972,2]
[332779161,1721517055597,-500.0,0.00013972,2]
[332779162,1721517055607,-500.0,0.00013972,2]
[332779163,1721517055618,-500.51009932,0.00013972,2]
[332779164,1721517055628,-500.0,0.00013972,2]
[332779165,1721517055638,-2501.31,0.00013972,2]
[332779166,1721517055648,-500.0,0.00013972,2]
[332779167,1721517055657,-946.75,0.00013972,2]
[332779168,1721517055667,-500.0,0.00013972,2]
[332779169,1721517055676,-500.0,0.00013972,2]
[332779170,1721517055686,-500.0,0.00013972,2]
[332779171,1721517055696,-2855.27,0.00013972,2]
[332779172,1721517055705,-520.92944104,0.00013972,2]
[332779173,1721517055716,-500.0,0.00013972,2]
[332779174,1721517055725,-500.0,0.00013972,2]
[332779175,1721517055735,-508.33268368,0.00013972,2]
[332779176,1721517055745,-1115.34,0.00013972,2]
[332779177,1721517055755,-500.0,0.00013972,2]
[332779178,1721517055765,-1320.11,0.00013972,2]
[332779179,1721517055776,-560.67,0.00013972,2]
[332779180,1721517055786,-500.0,0.00013972,2]
[332779181,1721517055796,-1885.9,0.00013972,2]
[332779182,1721517055805,-501.09350504,0.00013972,2]
[332779183,1721517055861,-453.62559309,0.00013972,2]
[332779184,1721517055875,-500.0,0.00013972,2]
[332779185,1721517055886,-500.0,0.00013972,2]
[332779186,1721517055896,-1045.11,0.00013972,2]
[332779187,1721517055907,-500.0,0.00013972,2]
[332779188,1721517055917,-2570.14,0.00013972,2]
[332779189,1721517055927,-500.0,0.00013972,2]
[332779190,1721517055938,-500.0,0.00013972,2]
[332779191,1721517055948,-500.0,0.00013972,2]
[332779192,1721517055957,-500.0,0.00013972,2]
[332779193,1721517055967,-500.0,0.00013972,2]
[332779194,1721517055976,-2905.48,0.00013972,2]
[332779195,1721517055985,-500.0,0.00013972,2]
[332779196,1721517055995,-1128.85,0.00013972,2]
[332779197,1721517056004,-500.0,0.00013972,2]
[332779198,1721517056014,-1902.53,0.00013972,2]
[332779199,1721517056023,-500.0,0.00013972,2]
[332779200,1721517056034,-517.79801418,0.00013972,2]
[332779201,1721517056043,-500.0,0.00013972,2]
[332779202,1721517056053,-2809.91,0.00013972,2]
[332779203,1721517056063,-500.0,0.00013972,2]
[332779204,1721517056073,-500.0,0.00013972,2]
[332779205,1721517056082,-1041.22,0.00013972,2]
[332779206,1721517056092,-2317.96,0.00013972,2]
[332779207,1721517056102,-500.0,0.00013972,2]
[332779208,1721517056111,-500.0,0.00013972,2]
[332779209,1721517056121,-500.74,0.00013972,2]
[332779210,1721517056131,-500.0,0.00013972,2]
[332779211,1721517056140,-500.0,0.00013972,2]
[332779212,1721517056150,-500.0,0.00013972,2]
[332779213,1721517056159,-1307.06,0.00013972,2]
[332779214,1721517056169,-1096.14,0.00013972,2]
[332779215,1721517056179,-1000.0,0.00013972,2]
[332779216,1721517056189,-1000.0,0.00013972,2]
[332779217,1721517056199,-1000.0,0.00013972,2]
[332779218,1721517056209,-1000.0,0.00013972,2]
[332779219,1721517056218,-1000.0,0.00013972,2]
[332779220,1721517056228,-1454.0,0.00013972,2]
[332779221,1721517056238,-1000.0,0.00013972,2]
[332779222,1721517056247,-1000.0,0.00013972,2]
[332779223,1721517056256,-1000.0,0.00013972,2]
[332779224,1721517056266,-1000.0,0.00013972,2]
[332779225,1721517056276,-500.0,0.00013972,2]
[332779226,1721517056286,-1000.0,0.00013972,2]
[332779227,1721517056295,-502.63082264,0.00013972,2]
[332779228,1721517056305,-1000.0,0.00013972,2]
[332779229,1721517056317,-1000.0,0.00013972,2]
[332779230,1721517056326,-1000.0,0.00013972,2]
[332779231,1721517056335,-500.0,0.00013972,2]
[332779232,1721517056344,-1000.0,0.00013972,2]
[332779233,1721517056353,-1000.0,0.00013972,2]
[332779234,1721517056363,-500.0,0.00013972,2]
[332779235,1721517056372,-1000.0,0.00013972,2]
[332779236,1721517056381,-1000.0,0.00013972,2]
[332779237,1721517056392,-1000.0,0.00013972,2]
[332779238,1721517056402,-1000.0,0.00013972,2]
[332779239,1721517056413,-29094.81,0.00013972,2]
[332779240,1721517056423,-1000.0,0.00013972,2]
[332779241,1721517056434,-1000.0,0.00013972,2]
[332779242,1721517056445,-1000.0,0.00013972,2]
[332779243,1721517056456,-1000.0,0.00013972,2]
[332779244,1721517056468,-1000.0,0.00013972,2]
[332779245,1721517056477,-13179.09,0.00013972,2]
[332779246,1721517056487,-1000.0,0.00013972,2]
[332779247,1721517056497,-1000.0,0.00013972,2]
[332779248,1721517056508,-1000.0,0.00013972,2]
[332779249,1721517056519,-1000.0,0.00013972,2]
[332779250,1721517056530,-898.05,0.00013972,2]
[332779251,1721517056540,-1000.0,0.00013972,2]
[332779252,1721517056549,-1000.0,0.00013972,2]
[332779253,1721517056560,-1000.0,0.00013972,2]
[332779254,1721517056570,-500.0,0.00013972,2]
[332779255,1721517056580,-500.0,0.00013972,2]
[332779256,1721517056590,-1000.0,0.00013972,2]
[332779257,1721517056600,-500.0,0.00013972,2]
[332779258,1721517056611,-1000.0,0.00013972,2]
[332779259,1721517056622,-1000.0,0.00013972,2]
[332779260,1721517056631,-500.0,0.00013972,2]
[332779261,1721517056640,-1000.0,0.00013972,2]
[332779262,1721517056650,-1349.61,0.00013972,2]
[332779263,1721517056661,-1000.0,0.00013972,2]
[332779264,1721517056671,-500.0,0.00013972,2]
[332779265,1721517056681,-1000.0,0.00013972,2]
[332779266,1721517056690,-1000.0,0.00013972,2]
[332779267,1721517056700,-1000.0,0.00013972,2]
[332779268,1721517056709,-929.885468,0.00013972,2]
[332779269,1721517056718,-500.0,0.00013972,2]
[332779270,1721517056727,-504.32763335,0.00013972,2]
[332779271,1721517056736,-500.0,0.00013972,2]
[332779272,1721517056746,-2327.7,0.00013972,2]
[332779273,1721517056756,-500.0,0.00013972,2]
[332779274,1721517056767,-8939.08,0.00013972,2]
[332779275,1721517056776,-216.17,0.00013972,2]
[332779276,1721517056785,-150.112233,0.00014,3]
[332779277,1721517056795,-154.9094073,0.00014,2]
[332779278,1721517056806,-150.112233,0.00014,2]
[332779279,1721517056817,-150.112233,0.00014,2]
[332779280,1721517056827,-500.0,0.00014246,2]
[332779281,1721517056838,-500.0,0.00014246,2]
[332779282,1721517056847,-500.0,0.00014246,2]
[332779283,1721517056856,-500.0,0.00014246,2]
[332779284,1721517056867,-500.0,0.00014246,2]
[332779285,1721517056881,-500.0,0.00014246,2]
[332779286,1721517056892,-714.7,0.00014246,2]
[332779287,1721517056901,-513.48,0.00014246,2]
[332779288,1721517056911,-1835.24,0.00014246,2]
[332779289,1721517056920,-500.0,0.00014246,2]
[332779290,1721517056929,-500.0,0.00014246,2]
[332779291,1721517056939,-500.0,0.00014246,2]
[332779292,1721517056950,-544.91142611,0.00014246,2]
[332779293,1721517056959,-849.35,0.00014246,2]
[332779294,1721517056970,-1072.6,0.00014246,2]
[332779295,1721517056981,-500.0,0.00014246,2]
[332779296,1721517056991,-500.0,0.00014246,2]
[332779297,1721517057001,-529.4,0.00014246,2]
[332779298,1721517057012,-500.0,0.00014246,2]
[332779299,1721517057023,-546.4,0.00014246,2]
[332779300,1721517057034,-500.0,0.00014246,2]
[332779301,1721517057045,-500.0,0.00014246,2]
[332779302,1721517057055,-500.0,0.00014246,2]
[332779303,1721517057066,-500.0,0.00014246,2]
[332779304,1721517057075,-1425.36,0.00014246,2]
[332779305,1721517057086,-502.93187272,0.00014246,2]
[332779306,1721517057095,-500.0,0.00014246,2]
[332779307,1721517057105,-500.0,0.00014246,2]
[332779308,1721517057118,-791.69,0.00014246,2]
[332779309,1721517057128,-337.32059266,0.00014246,2]
[332779310,1721517057137,-500.0,0.00014246,2]
[332779311,1721517057146,-500.0,0.00014246,2]
[332779312,1721517057155,-500.0,0.00014246,2]
[332779313,1721517057164,-500.0,0.00014246,2]
[332779314,1721517057174,-500.0,0.00014246,2]
[332779315,1721517057183,-315.68744378,0.00014246,2]
[332779316,1721517057193,-500.0,0.00014246,2]
[332779317,1721517057202,-808.49,0.00014246,2]
[332779318,1721517057212,-883.84,0.00014246,2]
[332779319,1721517057222,-871.83,0.00014246,2]
[332779320,1721517057231,-500.0,0.00014246,2]
[332779321,1721517057241,-500.0,0.00014246,2]
[332779322,1721517057250,-155.98610733,0.00014246,2]
[332779323,1721517057261,-1431.41,0.00014246,2]
[332779324,1721517057270,-500.0,0.00014246,2]
[332779325,1721517057282,-606.46,0.00014246,2]
[332779326,1721517057291,-1931.83,0.00014246,2]
[332779327,1721517057300,-500.0,0.00014246,2]
[332779328,1721517057309,-500.0,0.00014246,2]
[332779329,1721517057320,-500.0,0.00014246,2]
[332779330,1721517057332,-500.0,0.00014246,2]
[332779331,1721517057344,-500.0,0.00014246,2]
[332779332,1721517057355,-936.78,0.00014246,2]
[332779333,1721517057367,-809.2,0.00014246,2]
[332779334,1721517057377,-500.0,0.00014246,2]
[332779335,1721517057387,-500.0,0.00014246,2]
[332779336,1721517057398,-500.0,0.00014246,2]
[332779337,1721517057407,-791.06,0.00014246,2]
[332779338,1721517057418,-500.0,0.00014246,2]
[332779339,1721517057428,-500.0,0.00014246,2]
[332779340,1721517057438,-1045.36,0.00014246,2]
[332779341,1721517057447,-500.0,0.00014246,2]
[332779342,1721517057458,-500.0,0.00014246,2]
[332779343,1721517057468,-1198.63,0.00014246,2]
[332779344,1721517057479,-744.77,0.00014246,2]
[332779345,1721517057490,-500.0,0.00014246,2]
[332779346,1721517057501,-500.0,0.00014246,2]
[332779347,1721517057511,-500.0,0.00014246,2]
[332779348,1721517057522,-500.0,0.00014246,2]
[332779349,1721517057533,-507.38946244,0.00014246,2]
[332779350,1721517057543,-500.0,0.00014246,2]
[332779351,1721517057553,-1410.37,0.00014246,2]
[332779352,1721517057563,-500.0,0.00014246,2]
[332779353,1721517057572,-500.0,0.00014246,2]
[332779354,1721517057581,-686.24,0.00014246,2]
[332779355,1721517057590,-500.0,0.00014246,2]
[332779356,1721517057599,-186.58567742,0.00014246,2]
[332779357,1721517057609,-500.0,0.00014246,2]
[332779358,1721517057618,-578.61,0.00014246,2]
[332779359,1721517057627,-514.90635284,0.00014246,2]
[332779360,1721517057636,-500.0,0.00014246,2]
[332779361,1721517057645,-505.5,0.00014246,2]
[332779362,1721517057654,-2675.5,0.00014246,2]
[332779363,1721517057664,-500.0,0.00014246,2]
[332779364,1721517057673,-595.89,0.00014246,2]
[332779365,1721517057683,-500.0,0.00014246,2]
[332779366,1721517057692,-500.0,0.00014246,2]
[332779367,1721517057701,-1881.23,0.00014246,2]
[332779368,1721517057711,-332.19300314,0.00014246,2]
[332779369,1721517057721,-500.0,0.00014246,2]
[332779370,1721517057730,-500.0,0.00014246,2]
[332779371,1721517057739,-525.42,0.00014246,2]
[332779372,1721517057748,-500.0,0.00014246,2]
[332779373,1721517057757,-1143.28,0.00014246,2]
[332779374,1721517057767,-500.0,0.00014246,2]
[332779375,1721517057777,-2485.62,0.00014246,2]
[332779376,1721517057786,-500.0,0.00014246,2]
[332779377,1721517057795,-739.77,0.00014246,2]
[332779378,1721517057805,-500.0,0.00014246,2]
[332779379,1721517057814,-825.81,0.00014246,2]
[332779380,1721517057823,-500.0,0.00014246,2]
[332779381,1721517057832,-500.0,0.00014246,2]
[332779382,1721517057841,-508.23868395,0.00014246,2]
[332779383,1721517057850,-804.04,0.00014246,2]
[332779384,1721517057860,-500.0,0.00014246,2]
[332779385,1721517057874,-500.0,0.00014246,2]
[332779386,1721517057888,-1108.31,0.00014246,2]
[332779387,1721517057897,-500.0,0.00014246,2]
[332779388,1721517057907,-598.27,0.00014246,2]
[332779389,1721517057916,-600.65,0.00014246,2]
[332779390,1721517057925,-500.0,0.00014246,2]
[332779391,1721517057936,-500.0,0.00014246,2]
[332779392,1721517057945,-500.0,0.00014246,2]
[332779393,1721517057954,-500.0,0.00014246,2]
[332779394,1721517057963,-500.0,0.00014246,2]
[332779395,1721517057973,-500.0,0.00014246,2]
[332779396,1721517057982,-500.0,0.00014246,2]
[332779397,1721517057991,-541.82935569,0.00014246,2]
[332779398,1721517058000,-500.0,0.00014246,2]
[332779399,1721517058009,-500.0,0.00014246,2]
[332779400,1721517058018,-500.0,0.00014246,2]
[332779401,1721517058029,-1020.01,0.00014246,2]
[332779402,1721517058038,-500.0,0.00014246,2]
[332779403,1721517058048,-287.396175,0.00014246,2]
[332779404,1721517058058,-287.396175,0.00014246,2]
[332779405,1721517058069,-500.0,0.00014246,2]
[332779406,1721517058080,-287.396175,0.00014246,2]
[332779407,1721517058091,-287.396181,0.00014246,2]
[332779408,1721517058102,-560.68,0.00014246,2]
[332779409,1721517058114,-500.0,0.00014246,2]
[332779410,1721517058125,-500.0,0.00014246,2]
[332779411,1721517058137,-500.0,0.00014246,2]
[332779412,1721517058147,-500.0,0.00014246,2]
[332779413,1721517058159,-632.81,0.00014246,2]
[332779414,1721517058171,-500.0,0.00014246,2]
[332779415,1721517058181,-500.0,0.00014246,2]
[332779416,1721517058191,-500.0,0.00014246,2]
[332779417,1721517058200,-500.0,0.00014246,2]
[332779418,1721517058211,-500.0,0.00014246,2]
[332779419,1721517058222,-500.0,0.00014246,2]
[332779420,1721517058233,-500.0,0.00014246,2]
[332779421,1721517058243,-817.02,0.00014246,2]
[332779422,1721517058254,-536.03,0.00014246,2]
[332779423,1721517058264,-500.0,0.00014246,2]
[332779424,1721517058275,-506.11616401,0.00014246,2]
[332779425,1721517058286,-500.0,0.00014246,2]
[332779426,1721517058298,-500.0,0.00014246,2]
[332779427,1721517058310,-3843.27,0.00014246,2]
[332779428,1721517058320,-500.0,0.00014246,2]
[332779429,1721517058330,-500.0,0.00014246,2]
[332779430,1721517058340,-351.71501332,0.00014246,2]
[332779431,1721517058350,-507.85484977,0.00014246,2]
[332779432,1721517058359,-500.0,0.00014246,2]
[332779433,1721517058369,-500.0,0.00014246,2]
[332779434,1721517058379,-1691.38,0.00014246,2]
[332779435,1721517058388,-1457.63,0.00014246,2]
[332779436,1721517058397,-315.09393361,0.00014246,2]
[332779437,1721517058407,-1204.14,0.00014246,2]
[332779438,1721517058416,-500.0,0.00014246,2]
[332779439,1721517058426,-500.0,0.00014246,2]
[332779440,1721517058436,-500.0,0.00014246,2]
[332779441,1721517058446,-1753.89,0.00014246,2]
[332779442,1721517058456,-500.0,0.00014246,2]
[332779443,1721517058466,-500.0,0.00014246,2]
[332779444,1721517058475,-500.0,0.00014246,2]
[332779445,1721517058484,-500.0,0.00014246,2]
[332779446,1721517058494,-574.39,0.00014246,2]
[332779447,1721517058504,-644.94,0.00014246,2]
[332779448,1721517058514,-500.0,0.00014246,2]
[332779449,1721517058523,-500.0,0.00014246,2]
[332779450,1721517058533,-500.0,0.00014246,2]
[332779451,1721517058543,-737.39,0.00014246,2]
[332779452,1721517058552,-504.38908166,0.00014246,2]
[332779453,1721517058561,-737.17,0.00014246,2]
[332779454,1721517058571,-524.51,0.00014246,2]
[332779455,1721517058580,-182.99629275,0.00014246,2]
[332779456,1721517058590,-175.92461316,0.00014246,2]
[332779457,1721517058599,-500.0,0.00014246,2]
[332779458,1721517058608,-372.43572632,0.00014246,2]
[332779459,1721517058618,-838.37,0.00014246,2]
[332779460,1721517058629,-500.0,0.00014246,2]
[332779461,1721517058640,-515.24245551,0.00014246,2]
[332779462,1721517058649,-500.0,0.00014246,2]
[332779463,1721517058659,-500.0,0.00014246,2]
[332779464,1721517058669,-500.0,0.00014246,2]
[332779465,1721517058679,-641.65302339,0.00014246,2]
[332779466,1721517058688,-500.0,0.00014246,2]
[332779467,1721517058698,-828.7,0.00014246,2]
[332779468,1721517058708,-185.29238768,0.00014246,2]
[332779469,1721517058718,-618.28186363,0.00014246,2]
[332779470,1721517058730,-1609.23,0.00014246,2]
[332779471,1721517058740,-2071.54,0.00014246,2]
[332779472,1721517058751,-358.91674218,0.00014246,2]
[332779473,1721517058762,-1828.94,0.00014246,2]
[332779474,1721517058772,-500.0,0.00014246,2]
[332779475,1721517058782,-500.0,0.00014246,2]
[332779476,1721517058791,-1575.61,0.00014246,2]
[332779477,1721517058801,-500.0,0.00014246,2]
[332779478,1721517058812,-659.37,0.00014246,2]